bitfinex/quotes_ETHUSD_20250909
["timestamp","ask_amount","ask_price","bid_price","bid_amount"]
[1757424033685,5.0644371,4326.5,4326.4,1.773]
[1757424033851,2.31187145,4325.5,4325.3,10.0]
[1757424034051,2.31183231,4325.6,4325.4,5.755]
[1757424034251,0.3079,4325.5,4325.4,5.755]
[1757424034456,0.3079,4325.5,4325.4,8.755]
[1757424034690,1.9611,4325.5,4325.4,5.755]
[1757424034878,4.27297145,4325.5,4325.4,5.755]
[1757424035077,4.27297145,4325.5,4325.4,8.755]
[1757424035654,1.9611,4325.5,4325.4,8.755]
[1757424035860,4.27297145,4325.5,4325.4,8.755]
[1757424036090,1.9611,4325.5,4325.4,8.755]
[1757424037580,0.4452,4326.3,4325.5,34.8494932]
[1757424037791,0.4452,4326.3,4325.7,3.0]
[1757424038103,0.4452,4326.3,4325.9,3.0]
[1757424038264,0.4452,4326.3,4326.1,3.0]
[1757424038459,1.9611,4326.2,4325.6,1.84944722]
[1757424038665,1.9611,4326.2,4325.8,3.0]
[1757424038876,1.9611,4326.2,4325.9,43.981]
[1757424039072,3.51929354,4326.6,4326.1,3.0]
[1757424039295,1.6532,4326.5,4326.3,3.0]
[1757424039501,0.3079,4326.4,4326.0,3.0]
[1757424039698,0.3079,4326.4,4326.2,3.0]
[1757424039894,2.61929053,4326.4,4326.3,6.979]
[1757424040110,2.61929053,4326.4,4326.3,3.0]
[1757424040405,5.56906816,4326.4,4326.3,6.978]
[1757424041014,5.06449053,4326.4,4326.3,6.978]
[1757424041210,1.9611,4326.4,4326.3,6.978]
[1757424041393,0.4704,4326.8,4326.4,3.0]
[1757424041583,0.4704,4326.8,4326.3,6.978]
[1757424041584,0.0252,4326.8,4326.6,3.0]
[1757424041780,0.0252,4326.8,4326.7,6.979]
[1757424042109,0.0252,4326.8,4326.7,38.82798421]
[1757424042703,0.0252,4326.8,4326.7,38.94318421]
[1757424044618,0.0252,4326.8,4326.7,34.96418421]
[1757424044819,0.0252,4326.8,4326.7,38.94318421]
[1757424047299,0.0252,4326.8,4326.7,8.94318421]
[1757424047523,0.0252,4326.8,4326.7,38.94318421]
[1757424048437,0.0252,4326.8,4326.7,34.96418421]
[1757424048643,0.0252,4326.8,4326.7,38.93818421]
[1757424048793,0.0252,4326.8,4326.7,33.1152]
[1757424048997,1.9863,4326.8,4326.7,38.82098421]
[1757424049444,1.9863,4326.8,4326.7,36.972]
[1757424049627,1.9863,4326.8,4326.7,38.82098421]
[1757424049802,0.0252,4326.8,4326.7,38.82098421]
[1757424051949,0.0244,4326.8,4326.7,38.82098421]
[1757424052444,0.0244,4326.8,4326.7,8.82098421]
[1757424052610,0.0244,4326.8,4326.7,38.82098421]
[1757424054317,0.001,4327.3,4327.2,1.84877056]
[1757424054511,0.001,4327.3,4327.2,46.68988019]
[1757424054748,0.001,4327.3,4327.2,46.66677056]
[1757424055554,0.001,4327.7,4327.6,1.84859968]
[1757424055753,0.4702,4328.8,4327.8,4.84851425]
[1757424056042,0.025,4328.8,4328.7,1.84812992]
[1757424056346,0.025,4328.8,4328.7,40.61323154]
[1757424056546,0.025,4328.8,4328.7,40.59012992]
[1757424056699,0.3329,4328.8,4328.7,40.59012992]
[1757424056901,0.025,4328.8,4328.7,38.742]
[1757424057336,0.025,4328.8,4328.7,40.59012992]
[1757424058118,1.9861,4328.8,4328.7,40.59012992]
[1757424058704,1.9861,4328.8,4328.7,36.62112992]
[1757424058909,1.9861,4328.8,4328.7,40.70332992]
[1757424060221,1.9861,4328.8,4328.7,34.773]
[1757424060420,1.9861,4328.8,4328.7,38.739]
[1757424061547,1.9861,4328.8,4328.7,8.739]
[1757424061923,1.9861,4328.8,4328.7,4.773]
[1757424062122,1.9861,4328.8,4328.7,8.74]
[1757424063922,4.29720903,4328.8,4328.7,8.74]
[1757424064319,4.95793161,4328.8,4328.7,1.773]
[1757424064724,0.792,4328.5,4327.4,10.0]
[1757424065046,2.31089637,4327.4,4327.2,5.541]
[1757424065247,2.31089637,4327.4,4327.3,38.738]
[1757424065433,0.2875,4327.4,4327.3,8.738]
[1757424065825,4.2188564,4327.4,4327.3,5.738]
[1757424066310,4.2188564,4327.4,4327.3,8.738]
[1757424066623,4.2188564,4327.4,4327.3,1.772]
[1757424066823,4.2188564,4327.4,4327.3,5.736]
[1757424067049,4.2188564,4327.4,4327.3,8.736]
[1757424067661,1.908,4327.4,4327.3,8.736]
[1757424068169,4.2188564,4327.4,4327.3,8.736]
[1757424069035,4.2188564,4327.4,4327.3,4.772]
[1757424069235,1.908,4327.4,4327.3,8.734]
[1757424069445,4.2188564,4327.4,4327.3,8.734]
[1757424069657,1.908,4327.4,4327.3,8.734]
[1757424070097,4.2188564,4327.4,4327.3,8.734]
[1757424070305,1.908,4327.4,4327.3,8.734]
[1757424072658,0.2875,4327.4,4327.3,8.734]
[1757424072865,0.1152,4327.8,4327.4,13.0]
[1757424073066,1.6205,4327.7,4327.6,3.0]
[1757424073267,1.908,4327.7,4327.6,8.80659968]
[1757424073817,1.908,4327.7,4327.6,6.958]
[1757424074000,0.4285,4328.1,4327.7,30.0]
[1757424074165,0.4285,4328.1,4327.9,3.0]
[1757424074367,0.4285,4328.1,4328.0,6.957]
[1757424074885,1.908,4328.1,4328.0,6.957]
[1757424076272,0.4285,4328.4,4328.1,3.0]
[1757424076603,0.4285,4328.4,4328.3,3.0]
[1757424076769,1.908,4328.4,4328.3,3.0]
[1757424076965,1.192,4328.4,4328.3,3.0]
[1757424077170,2.31021577,4328.6,4328.5,3.0]
[1757424077402,3.78971577,4328.6,4328.5,3.954]
[1757424077622,3.78971577,4328.6,4328.5,6.954]
[1757424077823,3.78971577,4328.6,4328.5,2.525]
[1757424077824,5.63431362,4328.6,4328.5,2.525]
[1757424078003,5.63351362,4328.6,4328.5,6.478]
[1757424078718,5.63351362,4328.6,4328.5,2.525]
[1757424078925,5.63351362,4328.6,4328.5,6.478]
[1757424082098,5.63351362,4328.6,4328.5,6.476]
[1757424083529,5.63351362,4328.6,4328.5,6.474]
[1757424085559,0.1412,4328.8,4328.5,3.949]
[1757424085858,2.3101624,4328.7,4328.5,3.949]
[1757424086062,1.3332,4328.8,4328.5,3.949]
[1757424086263,3.64334522,4328.8,4328.5,3.949]
[1757424086433,2.31016601,4328.7,4328.5,3.949]
[1757424087044,3.64331704,4328.8,4328.5,3.949]
[1757424087244,0.026,4328.8,4328.7,0.2938]
[1757424087443,0.026,4328.8,4328.7,3.0]
[1757424087727,0.026,4328.8,4328.7,6.946]
[1757424087728,1.5055,4328.8,4328.7,6.946]
[1757424087929,1.5055,4328.8,4328.7,3.0]
[1757424088129,0.026,4328.8,4328.7,6.946]
[1757424088342,0.026,4328.8,4328.7,7.2398]
[1757424088766,0.026,4328.8,4328.7,6.946]
[1757424089068,1.5055,4328.8,4328.7,6.946]
[1757424089253,0.026,4328.8,4328.7,7.2398]
[1757424089452,0.026,4328.8,4328.7,6.946]
[1757424090163,1.5055,4328.8,4328.7,6.946]
[1757424090665,1.934,4328.8,4328.7,3.0]
[1757424090844,1.934,4328.8,4328.7,6.946]
[1757424091847,4.24410903,4328.8,4328.7,6.946]
[1757424092043,1.934,4328.8,4328.7,6.946]
[1757424093178,1.934,4328.8,4328.7,39.09722992]
[1757424093179,0.026,4328.8,4328.7,39.09722992]
[1757424093472,0.026,4328.8,4328.7,39.59992992]
[1757424093678,0.026,4328.8,4328.7,39.83127371]
[1757424093872,0.026,4328.8,4328.7,39.94647371]
[1757424094076,0.026,4328.8,4328.7,39.32662992]
[1757424094275,0.026,4328.8,4328.7,39.71412992]
[1757424095595,0.026,4328.8,4328.7,35.38162992]
[1757424095744,0.026,4328.8,4328.7,39.32662992]
[1757424095943,0.026,4328.8,4328.7,39.71412992]
[1757424098447,0.026,4328.8,4328.7,35.38162992]
[1757424098646,0.026,4328.8,4328.7,38.90832992]
[1757424099180,1.4612,4328.8,4328.7,3.0]
[1757424099476,1.9305,4328.8,4328.7,6.945]
[1757424099680,0.026,4328.8,4328.7,39.09622992]
[1757424099872,0.026,4328.8,4328.7,39.48372992]
[1757424100040,0.026,4328.8,4328.7,39.59892992]
[1757424100267,0.001,4329.3,4329.2,1.84791647]
[1757424100500,0.001,4329.3,4329.2,48.40991647]
[1757424100681,0.001,4329.3,4329.2,49.10051647]
[1757424100876,0.001,4329.3,4329.2,48.71501647]
[1757424101093,0.001,4329.3,4329.2,49.10251647]
[1757424101494,0.001,4329.3,4329.2,45.24786014]
[1757424101690,0.001,4329.3,4329.2,49.19486014]
[1757424104111,0.0002,4329.3,4329.2,49.19486014]
[1757424104307,0.0002,4329.3,4329.2,48.80536014]
[1757424105390,0.0002,4329.3,4329.2,44.86036014]
[1757424105598,0.0002,4329.3,4329.2,48.80436014]
[1757424106515,1.4354,4329.3,4329.2,46.19526014]
[1757424106705,1.134,4329.3,4329.2,46.10291647]
[1757424107012,0.0002,4329.3,4329.2,44.256]
[1757424107315,4.21454223,4329.3,4329.2,7.311]
[1757424107613,2.31008128,4328.9,4328.2,5.538]
[1757424107831,1.6031,4328.8,4328.3,45.717]
[1757424108129,1.6031,4328.7,4328.5,3.0]
[1757424108332,2.30995548,4329.1,4328.7,3.0]
[1757424108503,2.30995548,4329.1,4328.9,3.0]
[1757424108704,2.30995548,4329.1,4329.0,6.944]
[1757424109022,4.21445548,4329.1,4329.0,6.944]
[1757424109412,1.9045,4329.1,4329.0,6.944]
[1757424110144,0.0002,4329.3,4329.2,1.84791647]
[1757424110300,0.0002,4329.3,4329.2,40.67911647]
[1757424110500,0.0002,4329.3,4329.2,40.98221647]
[1757424111840,0.0002,4329.3,4329.2,41.36971647]
[1757424112321,0.0002,4329.3,4329.2,40.98221647]
[1757424112512,0.0002,4329.3,4329.2,41.36971647]
[1757424114205,0.0002,4329.3,4329.2,40.98221647]
[1757424115362,0.0002,4329.3,4329.2,37.03821647]
[1757424115526,0.0002,4329.3,4329.2,36.73511647]
[1757424116158,0.0002,4329.3,4329.2,40.67911647]
[1757424116357,0.0002,4329.3,4329.2,36.73511647]
[1757424116522,0.0002,4329.3,4329.2,40.67911647]
[1757424116722,1.9047,4329.3,4329.2,40.67911647]
[1757424117159,1.9047,4329.3,4329.2,36.73511647]
[1757424117458,1.9047,4329.3,4329.2,40.67911647]
[1757424117664,1.9047,4329.3,4329.2,38.8312]
[1757424117867,1.9047,4329.3,4329.2,35.8312]
[1757424118225,1.9047,4329.3,4329.2,37.67911647]
[1757424118559,1.9047,4329.3,4329.2,40.67911647]
[1757424119537,0.0002,4329.3,4329.2,40.98221647]
[1757424119965,1.4354,4329.3,4329.2,36.73511647]
[1757424120138,1.9047,4329.3,4329.2,40.67911647]
[1757424120346,1.134,4329.3,4329.2,40.67911647]
[1757424120547,0.0002,4329.3,4329.2,40.67911647]
[1757424120857,0.0002,4329.6,4329.5,1.84778842]
[1757424121028,0.0002,4329.6,4329.5,8.79178842]
[1757424121234,0.0002,4329.6,4329.5,39.21008842]
[1757424122557,0.025,4329.8,4329.6,4.84774575]
[1757424122784,0.001,4330.1,4330.0,1.84757505]
[1757424122990,0.001,4330.1,4330.0,46.53047505]
[1757424123505,0.001,4330.1,4330.0,46.64715725]
[1757424123963,0.001,4330.1,4330.0,47.03465725]
[1757424124488,0.001,4330.1,4330.0,46.64715725]
[1757424126391,0.001,4330.1,4330.0,47.33956694]
[1757424126761,0.001,4330.1,4330.0,47.33856694]
[1757424127685,1.1851,4330.8,4330.4,1.84740439]
[1757424127881,1.1851,4330.8,4330.4,35.79040439]
[1757424128200,1.1851,4330.8,4330.4,38.90560439]
[1757424128901,0.025,4330.8,4330.4,39.9126949]
[1757424130401,0.0002,4330.5,4330.4,39.9126949]
[1757424130600,1.912,4330.5,4330.4,33.80759051]
[1757424131109,4.22120217,4330.5,4330.4,0.1152]
[1757424131268,0.1152,4330.4,4330.1,0.6924944]
[1757424131482,2.74046215,4330.2,4330.1,0.6924944]
[1757424131682,4.33637464,4330.2,4330.1,3.943]
[1757424132003,4.33637464,4330.2,4330.1,6.943]
[1757424132702,3.10141548,4330.1,4330.0,7.309]
[1757424132868,4.39202038,4330.1,4330.0,1.772]
[1757424133067,5.98792038,4330.1,4330.0,8.715]
[1757424133605,5.98792038,4330.1,4330.0,5.715]
[1757424133899,5.98792038,4330.1,4330.0,8.715]
[1757424134578,5.98792038,4330.1,4330.0,4.772]
[1757424134780,5.98792038,4330.1,4330.0,8.715]
[1757424136487,5.98792038,4330.1,4330.0,4.772]
[1757424136665,5.98792038,4330.1,4330.0,8.715]
[1757424137666,5.98792038,4330.1,4330.0,4.772]
[1757424137901,5.98792038,4330.1,4330.0,8.715]
[1757424139086,5.98792038,4330.1,4329.0,5.537]
[1757424139087,2.30994895,4329.1,4329.0,5.537]
[1757424139385,2.7038,4329.1,4329.0,11.252]
[1757424139583,2.7038,4329.1,4329.0,14.252]
[1757424140200,1.1601,4329.1,4329.0,14.252]
[1757424140375,0.1152,4329.3,4329.1,3.0]
[1757424140706,1.2753,4329.3,4329.2,6.943]
[1757424140926,0.551,4329.3,4329.2,6.943]
[1757424141079,2.027,4329.3,4329.2,6.943]
[1757424142220,1.1601,4329.7,4329.2,7.2577]
[1757424142376,0.0002,4330.5,4329.4,1.8478311]
[1757424142377,1.2753,4330.2,4329.4,1.8478311]
[1757424142571,1.2753,4330.2,4329.6,3.0]
[1757424142824,1.2753,4330.2,4329.8,3.0]
[1757424143020,1.5959,4330.1,4330.0,3.0]
[1757424143325,1.9118,4330.1,4330.0,6.943]
[1757424144333,0.1152,4330.2,4330.1,3.0]
[1757424144620,1.1603,4330.5,4330.1,4.84753238]
[1757424144787,1.2755,4330.5,4330.3,3.0]
[1757424144987,0.1154,4330.5,4330.4,6.943]
[1757424145192,0.4313,4330.5,4330.4,6.943]
[1757424145420,2.74050217,4330.5,4330.4,6.943]
[1757424145634,4.33640217,4330.5,4330.4,6.943]
[1757424145941,5.79545202,4330.5,4330.4,3.0]
[1757424146156,3.48624985,4330.5,4330.4,6.943]
[1757424146457,5.79545202,4330.5,4330.4,6.943]
[1757424147703,5.79545202,4330.5,4330.4,3.0]
[1757424147914,5.79545202,4330.5,4329.9,1.772]
[1757424147915,3.10146882,4330.0,4329.9,1.772]
[1757424148105,5.5543554,4330.0,4329.9,5.715]
[1757424148841,5.5543554,4330.0,4329.9,1.772]
[1757424149140,5.5543554,4330.0,4329.9,5.715]
[1757424149953,5.5543554,4330.0,4329.9,1.772]
[1757424150161,5.5543554,4330.0,4329.9,5.715]
[1757424150610,5.5543554,4330.0,4329.9,1.772]
[1757424150815,5.5543554,4330.0,4329.9,5.715]
[1757424156134,5.5543554,4330.0,4329.9,1.772]
[1757424156339,3.21672215,4329.9,4329.8,0.002]
[1757424156647,4.24476961,4329.9,4329.8,3.945]
[1757424156851,4.54096961,4329.9,4329.8,3.945]
[1757424157047,5.61096961,4329.9,4329.8,3.945]
[1757424157245,6.07356961,4329.9,4329.8,3.945]
[1757424164970,6.07356961,4329.9,4329.8,0.002]
[1757424166576,3.10173553,4329.5,4329.4,1e-08]
[1757424166784,7.35390908,4329.5,4329.4,1e-08]
[1757424166979,9.18270908,4329.5,4329.4,1e-08]
[1757424168254,0.792,4328.7,4328.6,0.002]
[1757424168449,3.1021624,4328.7,4328.6,0.002]
[1757424168650,7.3403624,4328.7,4328.6,0.002]
[1757424168845,10.06901321,4328.7,4328.6,0.002]
[1757424173186,4.29821321,4328.7,4328.6,0.2977]
[1757424173377,3.1021624,4328.7,4328.6,0.2977]
[1757424173574,2.3101624,4328.7,4328.6,0.2977]
[1757424173982,3.1021624,4328.7,4328.6,0.2977]
[1757424174966,2.3101624,4328.7,4328.6,0.2977]
[1757424175321,3.1021624,4328.7,4328.6,0.6852]
[1757424175461,2.3101624,4328.7,4328.6,0.2977]
[1757424175965,3.1021624,4328.7,4328.6,0.2977]
[1757424176169,3.1021624,4328.7,4328.6,4.6272]
[1757424176994,3.1021624,4328.7,4328.6,4.2397]
[1757424180222,3.1021624,4328.7,4328.6,3.944]
[1757424180925,3.1021624,4328.7,4328.6,4.2397]
[1757424181221,5.11658557,4328.7,4328.6,3.944]
[1757424181425,5.57918557,4328.7,4328.6,3.944]
[1757424182286,5.57918557,4328.7,4328.6,0.002]
[1757424182605,5.57838557,4328.7,4328.6,0.002]
[1757424183715,4.81958557,4328.7,4328.6,0.002]
[1757424184027,5.56418557,4328.7,4328.6,0.002]
[1757424188717,9.50518557,4328.7,4328.6,0.002]
[1757424189558,9.50518557,4328.7,4327.7,1e-08]
[1757424189559,0.792,4328.6,4327.7,1e-08]
[1757424189852,3.10264282,4327.8,4327.7,1e-08]
[1757424190016,3.41064282,4327.8,4327.7,1e-08]
[1757424190221,4.48674282,4327.8,4327.7,1e-08]
[1757424191016,3.10264282,4327.8,4327.7,1e-08]
[1757424191239,4.09883295,4327.8,4327.7,0.28610001]
[1757424191666,5.48293295,4327.8,4327.7,1e-08]
[1757424192268,5.48293295,4327.8,4327.7,0.28610001]
[1757424192269,4.09883295,4327.8,4327.7,0.28610001]
[1757424192447,2.31064282,4327.8,4327.7,0.28610001]
[1757424193170,3.10264282,4327.8,4327.7,0.28610001]
[1757424194272,4.48674282,4327.8,4327.7,3.94100001]
[1757424195039,4.92334282,4327.8,4327.7,3.94100001]
[1757424195235,5.6467343,4327.8,4327.7,1e-08]
[1757424195437,9.5877343,4327.8,4327.7,1e-08]
[1757424195638,9.70830328,4327.8,4327.7,1e-08]
[1757424196669,12.92094723,4327.8,4327.7,1e-08]
[1757424196876,13.04853148,4327.8,4327.7,1e-08]
[1757424197047,9.92094723,4327.8,4327.7,1e-08]
[1757424197252,9.70830328,4327.8,4327.7,1e-08]
[1757424199341,9.5877343,4327.8,4327.7,1e-08]
[1757424202286,5.2101343,4327.8,4327.7,1e-08]
[1757424203394,5.6467343,4327.8,4327.7,1e-08]
[1757424206495,3.10312343,4326.9,4326.8,1e-08]
[1757424206862,4.17922343,4326.9,4326.8,1e-08]
[1757424207190,4.48722343,4326.9,4326.8,1e-08]
[1757424207399,4.92382343,4326.9,4326.8,1e-08]
[1757424207893,4.17922343,4326.9,4326.8,1e-08]
[1757424208094,5.22225096,4326.9,4326.8,1e-08]
[1757424208398,4.14615096,4326.9,4326.8,1e-08]
[1757424208766,4.14535096,4326.9,4326.8,1e-08]
[1757424209178,4.14535096,4326.9,4326.8,0.28610001]
[1757424210267,4.14535096,4326.9,4326.8,0.28810001]
[1757424210671,4.14535096,4326.9,4326.8,0.00200001]
[1757424210881,5.52945096,4326.9,4326.8,0.00200001]
[1757424211420,5.96605096,4326.9,4326.8,0.00200001]
[1757424211609,5.96605096,4326.9,4326.2,0.002]
[1757424211610,0.792,4326.4,4326.2,0.002]
[1757424211810,3.10360425,4326.0,4325.9,0.002]
[1757424212011,3.39680425,4326.0,4325.9,0.002]
[1757424212216,4.91750425,4326.0,4325.9,0.002]
[1757424212717,4.46370425,4326.0,4325.9,0.002]
[1757424212878,4.17512794,4326.0,4325.9,0.002]
[1757424213074,4.17512794,4326.0,4325.9,0.3127]
[1757424213281,3.10360425,4326.0,4325.9,0.7002]
[1757424214473,3.10360425,4326.0,4325.9,0.3127]
[1757424214974,3.10360425,4326.0,4325.9,0.7002]
[1757424215373,3.10360425,4326.0,4325.9,3.7002]
[1757424215579,3.10360425,4326.0,4325.9,0.7002]
[1757424215778,3.10360425,4326.0,4325.9,0.3127]
[1757424217413,3.10360425,4326.0,4325.9,0.7002]
[1757424218305,5.45901794,4326.0,4325.9,0.002]
[1757424218505,0.792,4325.9,4324.8,0.025]
[1757424218711,3.10419218,4324.9,4324.8,0.025]
[1757424218906,3.93902346,4324.9,4324.8,0.025]
[1757424219152,5.45972346,4324.9,4324.8,0.025]
[1757424221211,4.71272346,4324.9,4324.8,0.025]
[1757424222652,3.64582346,4324.9,4324.8,0.025]
[1757424222853,3.64582346,4324.9,4324.8,0.3357]
[1757424223353,3.64582346,4324.9,4324.8,0.025]
[1757424223857,5.45972346,4324.9,4324.8,0.025]
[1757424225347,3.64582346,4324.9,4324.8,0.3357]
[1757424225554,5.45972346,4324.9,4324.8,0.025]
[1757424226053,5.00592346,4324.9,4324.8,0.025]
[1757424227056,5.45972346,4324.9,4324.8,0.025]
[1757424227753,5.00592346,4324.9,4324.8,0.025]
[1757424228048,3.64582346,4324.9,4324.8,0.025]
[1757424228255,5.45972346,4324.9,4324.8,0.025]
[1757424229021,4.71272346,4324.9,4324.8,0.025]
[1757424229354,3.64582346,4324.9,4324.8,0.3357]
[1757424229656,2.31219218,4324.9,4324.8,0.7232]
[1757424230260,2.31196257,4325.4,4324.8,0.7252]
[1757424230428,0.54151369,4326.0,4324.9,0.3875]
[1757424230627,2.31160425,4326.0,4325.9,0.3107]
[1757424231775,2.42685768,4325.9,4325.8,3.94]
[1757424231975,2.42685768,4325.9,4325.8,4.2507]
[1757424232154,3.21885768,4325.9,4325.8,4.2507]
[1757424232851,2.31187145,4325.5,4325.4,1.774]
[1757424233052,4.77435859,4325.5,4325.4,1.774]
[1757424233376,3.1039249,4325.4,4324.8,0.027]
[1757424233578,2.31197835,4325.3,4324.8,0.027]
[1757424233755,2.31208526,4325.1,4325.0,3.0]
[1757424233940,2.31208526,4325.1,4325.0,0.3107]
[1757424234338,2.31208526,4325.1,4325.0,7.2497]
[1757424234956,2.31128526,4325.1,4325.0,7.2497]
[1757424235540,2.31128526,4325.1,4325.0,3.0]
[1757424235746,2.31128526,4325.1,4325.0,6.939]
[1757424236755,2.31128526,4325.1,4325.0,7.2497]
[1757424236958,2.31128526,4325.1,4325.0,7.6372]
[1757424237936,0.001,4326.2,4325.1,3.0]
[1757424238138,0.1152,4325.3,4325.2,0.3875]
[1757424238441,0.1152,4325.3,4325.2,0.6982]
[1757424238869,2.42717835,4325.3,4325.2,0.6982]
[1757424239388,2.42717835,4325.3,4325.2,0.3107]
[1757424239537,0.1152,4325.3,4325.2,0.3107]
[1757424240064,2.42717835,4325.3,4325.2,0.3107]
[1757424240698,2.31213872,4325.0,4324.8,0.027]
[1757424240836,2.31219218,4324.9,4324.8,0.027]
[1757424241040,3.21939218,4324.9,4324.8,3.966]
[1757424241340,5.03329218,4324.9,4324.8,6.966]
[1757424242232,5.03329218,4324.9,4324.8,3.027]
[1757424242438,5.03329218,4324.9,4324.8,6.965]
[1757424243649,3.21939218,4324.9,4324.8,7.269]
[1757424244037,3.21939218,4324.9,4324.8,6.965]
[1757424244444,4.29929218,4324.9,4324.8,6.965]
[1757424245271,4.60979218,4324.9,4324.8,6.965]
[1757424245849,3.10424565,4324.8,4324.7,1.774]
[1757424246084,4.65344565,4324.8,4324.7,5.712]
[1757424246286,4.96394565,4324.8,4324.7,5.712]
[1757424246447,4.49464565,4324.8,4324.7,5.712]
[1757424246647,5.52269065,4324.8,4324.7,5.712]
[1757424246977,5.99199065,4324.8,4324.7,5.712]
[1757424248138,5.99199065,4324.8,4324.7,1.774]
[1757424248680,5.99199065,4324.8,4324.7,4.848]
[1757424250767,3.10424565,4324.8,4324.7,5.152]
[1757424251301,2.31224565,4324.8,4324.7,8.5395]
[1757424251597,2.31219902,4324.9,4324.8,3.0]
[1757424251810,2.31219902,4324.9,4324.8,7.242]
[1757424252005,2.31219902,4324.9,4324.8,7.6295]
[1757424252662,2.31219902,4324.9,4324.8,7.242]
[1757424254298,0.792,4325.5,4324.8,7.242]
[1757424254466,2.31192786,4325.4,4324.9,40.3875]
[1757424254811,2.3119249,4325.4,4325.3,0.304]
[1757424255111,2.3119249,4325.4,4325.3,7.242]
[1757424255261,0.051,4325.8,4325.4,3.0]
[1757424255468,2.31185499,4325.6,4325.5,5.712]
[1757424255701,2.31185499,4325.6,4325.5,6.016]
[1757424256507,0.051,4325.8,4325.5,9.016]
[1757424256713,0.051,4325.8,4325.6,3.3875]
[1757424257004,2.36271112,4325.8,4325.7,6.937]
[1757424257180,2.36271112,4325.8,4325.7,3.0]
[1757424257382,2.36271112,4325.8,4325.7,7.241]
[1757424258005,0.051,4325.8,4325.7,7.241]
[1757424258524,0.051,4325.8,4325.7,7.6285]
[1757424259488,4.54511112,4325.8,4325.7,3.0]
[1757424259819,5.71160276,4325.8,4325.7,6.937]
[1757424260624,2.31181801,4325.6,4325.5,1.774]
[1757424260803,2.31181801,4325.6,4325.5,8.711]
[1757424260998,2.62231801,4325.6,4325.5,8.711]
[1757424261205,4.17071801,4325.6,4325.5,8.711]
[1757424262142,3.39091801,4325.6,4325.5,8.711]
[1757424262290,3.39091801,4325.6,4325.5,4.774]
[1757424262491,3.39091801,4325.6,4325.5,8.711]
[1757424263495,2.31101801,4325.6,4325.5,9.015]
[1757424263828,3.10301801,4325.6,4325.5,9.015]
[1757424265955,3.10301801,4325.6,4325.5,8.711]
[1757424266260,0.792,4325.6,4325.5,9.014]
[1757424266411,0.051,4325.8,4325.6,33.0]
[1757424266614,0.051,4325.8,4325.7,36.936]
[1757424266815,0.051,4325.8,4325.7,39.59211165]
[1757424268532,0.051,4325.8,4325.7,35.65611165]
[1757424268715,0.051,4325.8,4325.7,39.59211165]
[1757424271654,0.051,4325.8,4325.7,35.65611165]
[1757424271818,0.051,4325.8,4325.7,39.59111165]
[1757424273974,0.001,4326.2,4326.1,1.84924065]
[1757424274174,0.001,4326.2,4326.1,38.23055615]
[1757424274362,0.001,4326.2,4326.1,41.88954065]
[1757424274685,0.001,4326.2,4326.1,41.98194939]
[1757424275087,0.001,4326.2,4326.1,38.04694939]
[1757424275401,0.001,4326.2,4326.1,41.98094939]
[1757424276465,0.001,4326.7,4326.4,1.84908408]
[1757424276661,0.001,4326.7,4326.6,4.84902694]
[1757424276919,0.001,4326.7,4326.6,40.80082694]
[1757424277262,0.001,4326.7,4326.6,41.28072948]
[1757424278785,0.001,4326.7,4326.6,43.58872948]
[1757424279690,0.026,4327.8,4327.0,1.84885602]
[1757424279892,0.026,4327.8,4327.0,38.80496672]
[1757424280091,0.026,4327.8,4327.0,39.07645602]
[1757424280693,1.0949,4327.6,4327.0,39.07645602]
[1757424282623,1.8221,4327.1,4327.0,36.933]
[1757424282918,1.8221,4327.1,4327.0,3.0]
[1757424283123,1.8221,4327.1,4327.0,6.933]
[1757424283318,1.8221,4327.1,4327.0,8.78185602]
[1757424283627,1.8221,4327.1,4327.0,6.933]
[1757424284126,1.1209,4327.8,4327.7,1.84855697]
[1757424284327,1.1209,4327.8,4327.7,8.706]
[1757424284486,1.413,4327.8,4327.7,8.706]
[1757424284685,1.8471,4327.8,4327.7,8.706]
[1757424285988,4.15774282,4327.8,4327.7,8.705]
[1757424286188,2.4939305,4327.8,4327.7,8.705]
[1757424286413,1.8471,4327.8,4327.7,8.705]
[1757424287186,1.8463,4327.8,4327.7,8.705]
[1757424289723,1.9615,4327.8,4327.7,8.705]
[1757424292149,4.27214282,4327.8,4327.7,8.705]
[1757424292668,0.792,4327.7,4327.4,1.773]
[1757424292826,4.89558192,4327.6,4327.5,3.931]
[1757424293029,5.18768192,4327.6,4327.5,3.931]
[1757424293360,5.18768192,4327.6,4327.5,6.931]
[1757424293665,1.8211,4327.6,4327.5,6.931]
[1757424293838,0.0252,4327.8,4327.6,3.0]
[1757424294164,0.0252,4327.8,4327.5,7.2256]
[1757424294165,0.0252,4327.8,4327.7,6.931]
[1757424294363,0.0252,4327.8,4327.7,8.77955697]
[1757424294537,0.0252,4327.8,4327.7,9.07415697]
[1757424294741,0.0252,4327.8,4327.7,7.2256]
[1757424295628,0.3173,4327.8,4327.7,6.931]
[1757424295829,1.4122,4327.8,4327.7,6.931]
[1757424296162,1.1201,4327.8,4327.7,6.931]
[1757424296367,0.0252,4327.8,4327.7,6.931]
[1757424296562,1.4122,4327.8,4327.7,6.931]
[1757424296863,1.8463,4327.8,4327.7,6.931]
[1757424297253,1.8463,4327.8,4327.7,3.0]
[1757424297458,1.8463,4327.8,4327.7,6.931]